bitfinex/quotes_BTCUSD_20241003
["timestamp","ask_amount","ask_price","bid_price","bid_amount"]
[1727993392558,0.164004,60974.0,60970.0,0.164014]
[1727993392792,0.164001,60976.0,60972.0,0.023]
[1727993393019,0.327997,60977.0,60972.0,0.023]
[1727993393020,0.164002,60975.0,60972.0,0.18618671]
[1727993393252,0.327997,60977.0,60972.0,0.18618671]
[1727993393509,0.164003,60975.0,60972.0,0.18618671]
[1727993393976,0.164006,60974.0,60972.0,0.18618671]
[1727993394208,0.164019,60969.0,60964.0,0.164029]
[1727993394449,0.164019,60969.0,60968.0,0.24634789]
[1727993394698,0.164019,60969.0,60965.0,0.35010284]
[1727993395614,0.164019,60969.0,60968.0,0.025]
[1727993395838,0.164019,60969.0,60968.0,0.023]
[1727993396089,0.164019,60969.0,60966.0,0.023]
[1727993396312,0.164019,60969.0,60966.0,0.18618671]
[1727993396541,0.164837,60969.0,60966.0,0.18618671]
[1727993397240,0.164837,60969.0,60968.0,0.026]
[1727993397695,0.164837,60969.0,60967.0,0.023]
[1727993398888,0.000818,60969.0,60966.0,0.003]
[1727993399121,0.000818,60969.0,60962.0,0.26934789]
[1727993399350,0.164028,60965.0,60962.0,0.4325346]
[1727993399786,0.164028,60965.0,60962.0,0.18618671]
[1727993400683,0.000818,60969.0,60964.0,0.164029]
[1727993400894,0.000818,60969.0,60966.0,0.002]
[1727993401119,0.164024,60967.0,60966.0,0.002]
[1727993401338,0.164024,60967.0,60964.0,0.023]
[1727993401556,0.164027,60966.0,60963.0,0.023]
[1727993402515,0.164031,60964.0,60963.0,0.023]
[1727993403472,0.164031,60964.0,60963.0,0.025]
[1727993403807,0.164031,60964.0,60963.0,0.002]
[1727993403808,0.52374713,60964.0,60963.0,0.002]
[1727993404044,0.52374713,60964.0,60950.0,0.24634789]
[1727993404045,0.164044,60959.0,60950.0,0.24634789]
[1727993404271,0.54646013,60959.0,60950.0,0.24634789]
[1727993404511,0.164066,60951.0,60950.0,0.24634789]
[1727993404749,0.164085,60944.0,60943.0,0.24634789]
[1727993405205,0.164105,60937.0,60933.0,0.24634789]
[1727993405439,0.164111,60935.0,60933.0,0.24634789]
[1727993405690,0.328224,60934.0,60928.0,0.001636]
[1727993405937,0.24634789,60949.0,60928.0,0.001636]
[1727993405938,0.164125,60929.0,60928.0,0.001636]
[1727993407376,0.164125,60929.0,60928.0,0.002636]
[1727993407843,0.164125,60929.0,60928.0,0.001636]
[1727993408077,0.0257307,60929.0,60928.0,0.001636]
[1727993408308,0.164121,60931.0,60928.0,0.001636]
[1727993408797,0.164123,60930.0,60928.0,0.001636]
[1727993409026,0.003,60929.0,60928.0,0.001636]
[1727993409523,0.164123,60930.0,60928.0,0.001636]
[1727993410231,0.164123,60930.0,60928.0,0.004636]
[1727993410476,0.328194,60940.0,60928.0,0.004636]
[1727993410477,0.32821,60937.0,60929.0,0.023]
[1727993410707,0.65182889,60942.0,60929.0,0.023]
[1727993410708,0.164107,60936.0,60932.0,0.023]
[1727993410904,0.328201,60939.0,60932.0,0.023]
[1727993411186,0.259609,60935.0,60932.0,0.023]
[1727993411483,0.164125,60929.0,60928.0,0.005636]
[1727993411714,0.164125,60929.0,60928.0,0.001636]
[1727993412399,0.164125,60929.0,60928.0,0.002636]
[1727993412637,0.35304113,60929.0,60928.0,0.002636]
[1727993412869,0.44854113,60929.0,60928.0,0.001636]
[1727993413091,0.266625,60929.0,60928.0,0.002636]
[1727993413570,0.264625,60929.0,60928.0,0.001636]
[1727993414062,0.280625,60929.0,60928.0,0.003636]
[1727993414530,0.280625,60929.0,60928.0,0.002636]
[1727993414531,0.266625,60929.0,60928.0,0.002636]
[1727993414768,0.271625,60929.0,60928.0,0.002636]
[1727993415242,0.374625,60929.0,60928.0,0.002636]
[1727993415468,0.374625,60929.0,60917.0,0.24634789]
[1727993415469,0.164155,60918.0,60917.0,0.24634789]
[1727993415945,0.164151,60920.0,60916.0,0.18691613]
[1727993416173,0.328298,60921.0,60916.0,0.18691613]
[1727993416174,0.164153,60919.0,60916.0,0.18691613]
[1727993416397,0.328285,60923.0,60914.0,0.24634789]
[1727993416623,0.164155,60918.0,60914.0,0.24634789]
[1727993417134,0.164155,60918.0,60915.0,0.023]
[1727993417367,0.164155,60918.0,60916.0,0.006]
[1727993417887,0.164155,60918.0,60914.0,0.023]
[1727993418138,0.001,60918.0,60917.0,0.187157]
[1727993418395,0.001,60918.0,60917.0,0.35034371]
[1727993419163,0.001,60918.0,60917.0,0.5966916]
[1727993419402,0.0985,60939.0,60917.0,0.5966916]
[1727993419403,0.328208,60937.0,60931.0,0.023]
[1727993419645,0.328186,60941.0,60932.0,0.18691613]
[1727993419883,0.164104,60937.0,60932.0,0.35103213]
[1727993420867,0.164106,60936.0,60932.0,0.35103213]
[1727993421850,0.0985,60934.0,60917.0,0.63018671]
[1727993422090,0.328248,60930.0,60927.0,0.24634789]
[1727993422329,0.0985,60934.0,60920.0,0.16318671]
[1727993422566,0.164122,60931.0,60921.0,0.164146]
[1727993422825,0.0985,60934.0,60921.0,0.164146]
[1727993422826,0.164133,60927.0,60921.0,0.164146]
[1727993423071,0.34484789,60934.0,60918.0,0.164154]
[1727993423315,0.164128,60928.0,60927.0,0.001]
[1727993425206,0.165128,60928.0,60927.0,0.007]
[1727993425459,0.165128,60928.0,60917.0,0.24634789]
[1727993425460,0.164133,60926.0,60921.0,0.004]
[1727993425691,0.164144,60922.0,60921.0,0.004]
[1727993425925,0.164144,60922.0,60917.0,0.41050389]
[1727993426158,0.164147,60921.0,60917.0,0.24634789]
[1727993426391,0.02573065,60925.0,60919.0,0.023]
[1727993426620,0.014,60928.0,60921.0,0.328292]
[1727993426858,0.007,60928.0,60921.0,0.328292]
[1727993427083,0.007,60928.0,60922.0,0.164142]
[1727993427084,0.164132,60927.0,60922.0,0.164142]
[1727993427556,0.656488,60931.0,60922.0,0.164142]
[1727993427794,0.164133,60926.0,60922.0,0.164142]
[1727993428252,0.167133,60926.0,60922.0,0.164142]
[1727993428479,0.167133,60926.0,60921.0,0.187146]
[1727993428707,0.164133,60926.0,60921.0,0.024]
[1727993428938,0.006,60928.0,60921.0,0.024]
[1727993429173,0.164137,60925.0,60921.0,0.187146]
[1727993430811,0.164137,60925.0,60921.0,0.188146]
[1727993431048,0.24634789,60926.0,60914.0,0.001636]
[1727993431273,0.164161,60916.0,60915.0,0.24634789]
[1727993431512,0.328313,60918.0,60915.0,0.24634789]
[1727993431757,0.16416,60916.0,60914.0,0.001636]
[1727993432511,0.164159,60917.0,60915.0,0.004]
[1727993432764,0.164159,60917.0,60914.0,0.001636]
[1727993433016,0.328305,60919.0,60914.0,0.001636]
[1727993433017,0.164163,60915.0,60914.0,0.002636]
[1727993433511,0.264163,60915.0,60914.0,0.001636]
[1727993434240,0.264163,60915.0,60914.0,0.005636]
[1727993434480,0.264163,60915.0,60914.0,0.001636]
[1727993434672,0.270163,60915.0,60914.0,0.002636]
[1727993434941,0.270163,60915.0,60914.0,0.001636]
[1727993435158,0.270163,60915.0,60914.0,0.002636]
[1727993435405,0.277163,60915.0,60914.0,0.002636]
[1727993435647,0.264163,60915.0,60914.0,0.001636]
[1727993435892,0.271163,60915.0,60914.0,0.002636]
[1727993436098,0.281163,60915.0,60914.0,0.003636]
[1727993436399,0.30690239,60915.0,60914.0,0.003636]
[1727993436624,0.281163,60915.0,60914.0,0.003636]
[1727993437588,0.181163,60915.0,60914.0,0.003636]
[1727993437832,0.017,60915.0,60914.0,0.003636]
[1727993438057,0.171163,60915.0,60914.0,0.002636]
[1727993438296,0.171163,60915.0,60914.0,0.003636]
[1727993438297,0.182163,60915.0,60914.0,0.003636]
[1727993438800,0.182163,60915.0,60914.0,0.001636]
[1727993438801,0.164163,60915.0,60914.0,0.001636]
[1727993439059,0.168163,60915.0,60914.0,0.001636]
[1727993439768,0.19389934,60915.0,60914.0,0.001636]
[1727993439998,0.20089934,60915.0,60914.0,0.002636]
[1727993440768,0.19689934,60915.0,60914.0,0.002636]
[1727993441228,0.18989934,60915.0,60914.0,0.005636]
[1727993441457,0.19789934,60915.0,60914.0,0.002636]
[1727993441681,0.20189934,60915.0,60914.0,0.002636]
[1727993441931,0.19389934,60915.0,60914.0,0.001636]
[1727993442393,0.20089934,60915.0,60914.0,0.002636]
[1727993444241,0.175163,60915.0,60914.0,0.002636]
[1727993444707,0.177163,60915.0,60914.0,0.002636]
[1727993444934,0.277163,60915.0,60914.0,0.002636]
[1727993445155,0.33025136,60915.0,60914.0,0.002636]
[1727993447413,0.35599056,60915.0,60914.0,0.002636]
[1727993448363,0.33025136,60915.0,60914.0,0.002636]
[1727993451332,0.32825136,60915.0,60914.0,0.002636]
[1727993451556,0.275163,60915.0,60914.0,0.002636]
[1727993451793,0.277163,60915.0,60914.0,0.002636]
[1727993452016,0.275163,60915.0,60914.0,0.002636]
[1727993452912,0.30090161,60915.0,60914.0,0.002636]
[1727993456650,0.35401664,60915.0,60914.0,0.002636]
[1727993456879,0.30090161,60915.0,60914.0,0.002636]
[1727993457375,0.40286,60915.0,60914.0,0.002636]
[1727993457613,0.35603366,60915.0,60914.0,0.002636]
[1727993457837,0.42940894,60915.0,60914.0,0.002636]
[1727993458060,0.65182684,60915.0,60914.0,0.002636]
[1727993459771,0.62608823,60915.0,60914.0,0.002636]
[1727993460029,1.00311427,60915.0,60914.0,0.002636]
[1727993460246,0.8810484,60915.0,60914.0,0.002636]
[1727993460698,0.8740484,60915.0,60914.0,0.001636]
[1727993460920,0.8700484,60915.0,60914.0,0.001636]
[1727993461387,0.8820484,60915.0,60914.0,0.002636]
[1727993461615,0.8920484,60915.0,60914.0,0.002636]
[1727993461837,0.9040484,60915.0,60914.0,0.003636]
[1727993462302,0.64003554,60915.0,60914.0,0.003636]
[1727993462591,0.44189505,60915.0,60914.0,0.003636]
[1727993463044,0.45763368,60915.0,60914.0,0.002636]
[1727993463300,0.50654064,60915.0,60914.0,0.002636]
[1727993463529,0.49654064,60915.0,60914.0,0.001636]
[1727993464236,0.50754064,60915.0,60914.0,0.001636]
[1727993464702,0.51654064,60915.0,60914.0,0.001636]
[1727993464926,0.49154064,60915.0,60914.0,0.001636]
[1727993465204,0.50054064,60915.0,60914.0,0.001636]
[1727993465437,0.45163368,60915.0,60914.0,0.001636]
[1727993466121,0.45863368,60915.0,60914.0,0.001636]
[1727993466351,0.5229933,60915.0,60914.0,0.001636]
[1727993466792,0.5159933,60915.0,60914.0,0.001636]
[1727993467327,0.65444338,60915.0,60914.0,0.001636]
[1727993467569,0.40698817,60915.0,60914.0,0.001636]
[1727993467803,0.35803368,60915.0,60914.0,0.001636]
[1727993468081,0.09387068,60915.0,60914.0,0.001636]
[1727993468326,0.015,60915.0,60914.0,0.4365647]
[1727993468552,0.015,60915.0,60914.0,0.43328771]
[1727993469238,0.009,60915.0,60914.0,0.43328771]
[1727993469475,0.000818,60918.0,60916.0,0.164159]
[1727993469705,0.164163,60915.0,60914.0,0.082936]
[1727993469937,0.171163,60915.0,60914.0,0.082936]
[1727993470184,0.164163,60915.0,60914.0,0.082936]
[1727993470409,0.165163,60915.0,60914.0,0.083936]
[1727993470635,0.166163,60915.0,60914.0,0.083936]
[1727993470886,0.164163,60915.0,60914.0,0.082936]
[1727993471351,0.165163,60915.0,60914.0,0.082936]
[1727993472497,0.164163,60915.0,60914.0,0.082936]
[1727993473623,0.165163,60915.0,60914.0,0.082936]
[1727993486583,0.001,60915.0,60914.0,0.105936]
[1727993488474,0.165163,60915.0,60914.0,0.105936]
[1727993488970,0.165163,60915.0,60914.0,0.082936]
[1727993489198,0.165163,60915.0,60914.0,0.001636]
[1727993489876,0.164163,60915.0,60914.0,0.001636]
[1727993490375,0.004,60915.0,60914.0,0.001636]
[1727993490612,0.004,60915.0,60914.0,0.188801]
[1727993490854,0.004,60915.0,60914.0,0.43328771]
[1727993491576,0.000818,60918.0,60917.0,0.023]
[1727993492979,0.000818,60918.0,60917.0,0.187157]
[1727993494658,0.000818,60918.0,60917.0,0.023]
[1727993494910,0.164163,60915.0,60914.0,0.001636]
[1727993495127,0.164163,60915.0,60914.0,0.024636]
[1727993496058,0.164163,60915.0,60914.0,0.001636]
[1727993497419,0.165163,60915.0,60914.0,0.001636]
[1727993498342,0.164163,60915.0,60914.0,0.001636]
[1727993498580,0.165163,60915.0,60914.0,0.001636]
[1727993498810,0.19089874,60915.0,60914.0,0.001636]
[1727993500313,0.02673574,60915.0,60914.0,0.001636]
[1727993500544,0.001,60915.0,60914.0,0.61518552]
[1727993501635,0.000818,60918.0,60915.0,0.187161]
[1727993502996,0.000818,60918.0,60915.0,0.189161]
[1727993508175,0.164974,60918.0,60915.0,0.025]
[1727993508411,0.093918,60918.0,60915.0,0.002]
[1727993508634,0.164158,60917.0,60915.0,0.002]
[1727993509100,0.16416,60916.0,60915.0,0.002]
[1727993509777,0.16416,60916.0,60914.0,0.001636]
[1727993510253,0.16416,60916.0,60915.0,0.002]
[1727993510479,0.164163,60915.0,60914.0,0.001636]
[1727993510713,0.164163,60915.0,60914.0,0.024636]
[1727993511635,0.164163,60915.0,60914.0,0.025636]
[1727993512573,0.165163,60915.0,60914.0,0.027636]
[1727993512805,0.165163,60915.0,60914.0,0.025636]
[1727993513032,0.166163,60915.0,60914.0,0.027636]
[1727993513294,0.21424877,60915.0,60914.0,0.025636]
[1727993513518,0.21424877,60915.0,60914.0,0.024636]
[1727993513773,0.21524877,60915.0,60914.0,0.026636]
[1727993515210,0.166163,60915.0,60914.0,0.026636]
[1727993515411,0.21524877,60915.0,60914.0,0.026636]
[1727993516205,0.05108577,60915.0,60914.0,0.026636]
[1727993516457,0.21524877,60915.0,60914.0,0.026636]
[1727993520823,0.05108577,60915.0,60914.0,0.026636]
[1727993521784,0.05121854,60915.0,60914.0,0.026636]
[1727993526542,0.05121984,60915.0,60914.0,0.026636]
[1727993529429,0.05122197,60915.0,60914.0,0.35398771]
[1727993529666,0.05122197,60915.0,60914.0,0.43488771]
[1727993529667,0.002,60915.0,60914.0,0.43488771]
[1727993530199,0.166163,60915.0,60914.0,0.003636]
[1727993530451,0.339663,60915.0,60914.0,0.003636]
[1727993530733,0.339663,60915.0,60895.0,0.24634789]
[1727993530734,0.164209,60898.0,60895.0,0.24634789]
[1727993531221,0.26262299,60898.0,60895.0,0.24634789]
[1727993531477,0.36512444,60898.0,60895.0,0.24634789]
[1727993531696,0.36512444,60898.0,60888.0,0.18659781]
[1727993532192,0.20091544,60898.0,60896.0,0.18659781]
[1727993532419,0.0491696,60900.0,60898.0,0.023]
[1727993532670,0.164204,60900.0,60898.0,0.023]
[1727993532937,0.0491696,60902.0,60900.0,0.023]
[1727993533198,0.47,60923.0,60901.0,0.16318671]
[1727993533199,0.0491696,60908.0,60901.0,0.16318671]
[1727993533460,0.12301795,60913.0,60911.0,0.023]
[1727993533461,0.0491696,60913.0,60911.0,0.023]
[1727993533701,0.41051389,60914.0,60911.0,0.20959781]
[1727993533702,0.45968349,60914.0,60911.0,0.20959781]
[1727993533948,0.45968349,60914.0,60911.0,0.37377081]
[1727993533949,0.24634789,60914.0,60911.0,0.37377081]
[1727993534193,0.0491696,60917.0,60911.0,0.37377081]
[1727993534194,0.164163,60915.0,60911.0,0.20959781]
[1727993535122,0.0491696,60916.0,60911.0,0.20959781]
[1727993535379,0.0491696,60916.0,60913.0,0.023]
[1727993535615,0.0491696,60916.0,60915.0,0.20959781]
[1727993536339,0.2133276,60917.0,60915.0,0.20959781]
[1727993536860,0.2133276,60917.0,60915.0,0.21459781]
[1727993536861,0.0491696,60916.0,60915.0,0.21459781]
[1727993537094,0.001,60916.0,60915.0,0.21459781]
[1727993537618,0.001,60916.0,60915.0,0.54394752]
[1727993538133,0.001,60916.0,60915.0,0.53894752]
[1727993538374,0.000818,60918.0,60917.0,0.164157]
[1727993538608,0.000818,60918.0,60917.0,0.187157]
[1727993539978,0.000818,60918.0,60917.0,0.023]
[1727993540230,0.000818,60918.0,60917.0,0.027]
[1727993542072,0.000818,60918.0,60917.0,0.191157]
[1727993542298,0.000818,60918.0,60917.0,0.35434371]
[1727993549638,0.000818,60918.0,60917.0,0.35334371]
[1727993549852,0.001818,60918.0,60917.0,0.35534371]
[1727993550075,0.001818,60918.0,60917.0,0.35234371]
[1727993550300,0.002818,60918.0,60917.0,0.35734371]
[1727993550534,0.001818,60918.0,60917.0,0.35234371]
[1727993551197,0.000818,60918.0,60917.0,0.35034371]
[1727993551421,0.001818,60918.0,60917.0,0.35334371]
[1727993551874,0.001818,60918.0,60917.0,0.35734371]
[1727993552323,0.002818,60918.0,60917.0,0.44174371]
[1727993552561,0.000818,60925.0,60924.0,0.164138]
[1727993552823,0.000818,60925.0,60924.0,0.61732252]
[1727993553061,0.000818,60928.0,60924.0,0.61732252]
[1727993553062,0.000818,60928.0,60925.0,0.123]
[1727993553283,0.000818,60928.0,60927.0,0.35031671]
[1727993554431,0.000818,60928.0,60927.0,0.18618671]
[1727993554661,0.000818,60928.0,60925.0,0.023]
[1727993554886,0.000818,60928.0,60927.0,0.023]
[1727993555347,0.001818,60928.0,60927.0,0.19713]
[1727993555595,0.001818,60928.0,60927.0,0.033]
[1727993555826,0.165946,60928.0,60927.0,0.031]
[1727993556055,0.165946,60928.0,60924.0,0.164138]
[1727993556289,0.166946,60928.0,60927.0,0.034]
[1727993557283,0.164946,60928.0,60927.0,0.027]
[1727993557836,0.164946,60928.0,60925.0,0.023]
[1727993558038,0.000818,60928.0,60927.0,0.027]
[1727993558641,0.000818,60928.0,60926.0,0.023]
[1727993558846,0.000818,60928.0,60927.0,0.029]
[1727993559694,0.000818,60928.0,60927.0,0.027]
[1727993560241,0.000818,60928.0,60927.0,0.028]
[1727993560950,0.000818,60928.0,60927.0,0.35131671]
[1727993561176,0.000818,60928.0,60927.0,0.43421671]
[1727993562027,0.002818,60928.0,60927.0,0.43321671]
[1727993562499,0.001818,60928.0,60927.0,0.44021671]
[1727993562720,0.001818,60928.0,60927.0,0.44421671]
[1727993563168,0.000818,60928.0,60927.0,0.43721671]
[1727993563621,0.001818,60928.0,60927.0,0.44421671]
[1727993563825,0.001818,60928.0,60927.0,0.43721671]
[1727993564043,0.001818,60928.0,60927.0,0.43321671]
[1727993564335,0.002818,60928.0,60927.0,0.44321671]
[1727993564867,0.001818,60928.0,60927.0,0.43321671]
[1727993565096,0.003818,60928.0,60927.0,0.46155857]
[1727993565318,0.002818,60928.0,60927.0,0.46155857]
[1727993565534,0.002818,60928.0,60927.0,0.44755857]
[1727993565731,0.003818,60928.0,60927.0,0.46155857]
[1727993565998,0.000818,60928.0,60927.0,0.43755857]
[1727993566440,0.001818,60928.0,60927.0,0.45155857]
[1727993568240,0.002818,60928.0,60927.0,0.46155857]
[1727993570320,0.002818,60928.0,60927.0,0.45721671]
[1727993585833,0.002818,60928.0,60927.0,0.024]
[1727993586321,0.166946,60928.0,60927.0,0.024]
[1727993586544,0.166946,60928.0,60927.0,0.014]
[1727993586545,0.165946,60928.0,60927.0,0.014]
[1727993586787,0.165946,60928.0,60925.0,0.001636]
[1727993586788,0.164133,60926.0,60925.0,0.001636]
[1727993587055,0.334933,60926.0,60925.0,0.001636]
[1727993587283,0.40861006,60926.0,60925.0,0.001636]
[1727993587542,0.46201002,60926.0,60925.0,0.001636]
[1727993588000,0.38404479,60926.0,60925.0,0.001636]
[1727993588491,0.38404479,60926.0,60925.0,0.165772]
[1727993588492,0.0931,60926.0,60925.0,0.165772]
[1727993588714,0.000818,60928.0,60927.0,0.16413]
[1727993588962,0.000818,60928.0,60927.0,0.60001452]
[1727993589195,0.000818,60928.0,60927.0,0.59501452]
[1727993590115,0.001818,60928.0,60927.0,0.62501452]
[1727993590327,0.001818,60928.0,60927.0,0.61801452]
[1727993590552,0.001818,60928.0,60927.0,0.62201452]
[1727993590794,0.002818,60928.0,60927.0,0.62901452]
[1727993591016,0.002818,60928.0,60927.0,0.62501452]
[1727993591243,0.003818,60928.0,60927.0,0.63201452]
[1727993591493,0.003818,60928.0,60927.0,0.60901452]
[1727993591977,0.001818,60928.0,60927.0,0.60201452]
[1727993592637,0.001818,60928.0,60927.0,0.61201452]
[1727993592843,0.002818,60928.0,60927.0,0.61201452]
[1727993594133,0.001818,60928.0,60927.0,0.60501452]
[1727993594582,0.002818,60928.0,60927.0,0.61201452]
[1727993595238,0.001818,60928.0,60927.0,0.60201452]
[1727993596005,0.002818,60928.0,60927.0,0.61201452]
[1727993596472,0.001818,60928.0,60927.0,0.60501452]
[1727993596700,0.001818,60928.0,60927.0,0.60201452]
[1727993596942,0.002818,60928.0,60927.0,0.61201452]
[1727993598121,0.002818,60928.0,60927.0,0.44788452]
[1727993598363,0.002818,60928.0,60927.0,0.61201452]
[1727993600756,0.166946,60928.0,60927.0,0.36678452]
[1727993601010,0.341646,60928.0,60927.0,0.017]
[1727993601258,0.41534141,60928.0,60927.0,0.017]
[1727993601501,0.54539277,60928.0,60927.0,0.017]
[1727993601746,0.341646,60928.0,60927.0,0.017]
[1727993602705,0.64338015,60928.0,60927.0,0.017]
[1727993602958,0.41538648,60928.0,60927.0,0.017]
[1727993603199,0.341646,60928.0,60927.0,0.017]
[1727993603475,0.41538323,60928.0,60927.0,0.017]
[1727993603712,0.66695032,60928.0,60927.0,0.01]
[1727993603951,0.54412464,60928.0,60927.0,0.01]
[1727993604190,0.5974719,60928.0,60927.0,0.01]
[1727993604402,0.72031554,60928.0,60927.0,0.01]
[1727993604604,0.164133,60926.0,60925.0,0.001636]
[1727993604823,0.46588605,60926.0,60925.0,0.001636]
[1727993606168,0.46888605,60926.0,60925.0,0.001636]
[1727993606313,0.47388605,60926.0,60925.0,0.001636]
[1727993606532,0.172133,60926.0,60925.0,0.001636]
[1727993607426,0.24580398,60926.0,60925.0,0.001636]
[1727993607634,0.34010398,60926.0,60925.0,0.001636]
[1727993608529,0.31554376,60926.0,60925.0,0.001636]
[1727993609153,0.266433,60926.0,60925.0,0.001636]
[1727993609383,0.31554376,60926.0,60925.0,0.001636]
[1727993609600,0.266433,60926.0,60925.0,0.001636]
[1727993609847,0.34127578,60926.0,60925.0,0.001636]
[1727993610090,0.29216502,60926.0,60925.0,0.001636]
[1727993610744,0.34127072,60926.0,60925.0,0.001636]
[1727993611032,0.3155387,60926.0,60925.0,0.001636]
[1727993611269,0.266433,60926.0,60925.0,0.001636]
[1727993612373,0.3155344,60926.0,60925.0,0.001636]
[1727993612803,0.266433,60926.0,60925.0,0.001636]
[1727993613034,0.3155344,60926.0,60925.0,0.001636]
[1727993613297,0.266433,60926.0,60925.0,0.001636]
[1727993614235,0.34126138,60926.0,60925.0,0.001636]
[1727993615016,0.19786497,60926.0,60925.0,0.001636]
[1727993615730,0.19286497,60926.0,60925.0,0.001636]
[1727993615965,0.19486497,60926.0,60925.0,0.001636]
[1727993616196,0.19486497,60926.0,60925.0,0.004636]
[1727993616434,0.18986497,60926.0,60925.0,0.004636]
[1727993616668,0.164133,60926.0,60925.0,0.004636]
[1727993622422,0.164951,60926.0,60925.0,0.004636]
[1727993623240,0.168951,60926.0,60925.0,0.004636]
[1727993623670,0.168951,60926.0,60925.0,0.001636]
[1727993624069,0.169951,60926.0,60925.0,0.001636]
[1727993624469,0.165951,60926.0,60925.0,0.001636]
[1727993624681,0.168951,60926.0,60925.0,0.001636]
[1727993625317,0.164951,60926.0,60925.0,0.001636]
[1727993625631,0.167951,60926.0,60925.0,0.001636]
[1727993625850,0.168951,60926.0,60925.0,0.001636]
[1727993631414,0.21804741,60926.0,60925.0,0.001636]
[1727993632522,0.24259562,60926.0,60925.0,0.001636]
[1727993633187,0.46332441,60926.0,60925.0,0.001636]
[1727993633422,0.72229836,60926.0,60925.0,0.001636]
[1727993633646,0.59955733,60926.0,60925.0,0.001636]
[1727993633865,0.74684657,60926.0,60925.0,0.001636]
[1727993634148,0.82401065,60926.0,60925.0,0.001636]
[1727993634797,0.82101065,60926.0,60925.0,0.001636]
[1727993635028,0.82901065,60926.0,60925.0,0.002636]
[1727993635290,0.83601065,60926.0,60925.0,0.003636]
[1727993635528,1.01144687,60926.0,60925.0,0.001636]
[1727993635748,1.19365827,60926.0,60925.0,0.001636]
[1727993635996,1.20565827,60926.0,60925.0,0.002636]
[1727993636449,1.17992245,60926.0,60925.0,0.002636]
[1727993636668,0.340055,60918.0,60917.0,0.001636]
[1727993636890,0.69676133,60918.0,60917.0,0.001636]
[1727993638070,0.69976133,60918.0,60917.0,0.001636]
[1727993638313,0.70276133,60918.0,60917.0,0.001636]
[1727993638592,0.51996133,60918.0,60917.0,0.001636]
[1727993638838,0.22125436,60918.0,60917.0,0.001636]
[1727993639796,0.24698884,60918.0,60917.0,0.001636]
[1727993640630,0.19788948,60918.0,60917.0,0.001636]
[1727993641888,0.24699437,60918.0,60917.0,0.001636]
[1727993642886,0.24199437,60918.0,60917.0,0.001636]
[1727993643583,0.24699437,60918.0,60917.0,0.001636]
[1727993643857,0.24399437,60918.0,60917.0,0.001636]
[1727993644110,0.005,60918.0,60917.0,0.59459897]
[1727993644366,0.003,60918.0,60917.0,0.51569897]
[1727993644632,0.000818,60926.0,60925.0,0.164136]
[1727993644895,0.000818,60926.0,60925.0,0.61594197]
[1727993647108,0.000818,60926.0,60925.0,0.59294197]
[1727993647611,0.001818,60926.0,60925.0,0.62294197]
[1727993647861,0.000818,60926.0,60925.0,0.59294197]
[1727993648548,0.001818,60926.0,60925.0,0.59394197]
[1727993648791,0.001818,60926.0,60925.0,0.59594197]
[1727993649023,0.001818,60926.0,60925.0,0.59394197]
[1727993649300,0.001818,60926.0,60925.0,0.60094197]
[1727993649301,0.002818,60926.0,60925.0,0.60094197]
[1727993650015,0.001818,60926.0,60925.0,0.59994197]
[1727993650250,0.002818,60926.0,60925.0,0.59994197]
[1727993650952,0.000818,60926.0,60925.0,0.59294197]
[1727993651187,0.002818,60926.0,60925.0,0.59994197]
[1727993654505,0.000818,60926.0,60925.0,0.59294197]
[1727993654734,0.002818,60926.0,60925.0,0.59994197]
[1727993658023,0.002818,60926.0,60925.0,0.60157797]
[1727993658971,0.001818,60926.0,60925.0,0.60157797]
[1727993659211,0.001818,60926.0,60925.0,0.59457797]
[1727993659451,0.002818,60926.0,60925.0,0.60157797]
[1727993660147,0.002818,60926.0,60925.0,0.62457797]
[1727993660933,0.001818,60926.0,60925.0,0.62457797]
[1727993661646,0.000818,60926.0,60925.0,0.61757797]
[1727993662133,0.001818,60926.0,60925.0,0.62457797]
[1727993662381,0.002818,60926.0,60925.0,0.62457797]
[1727993663118,0.002818,60926.0,60925.0,0.6287423]
[1727993665815,0.002818,60926.0,60925.0,0.5644177]
[1727993668716,0.24634789,60934.0,60925.0,0.5644177]
[1727993668717,0.24634789,60942.0,60928.0,0.005]
[1727993668957,0.24634789,60942.0,60941.0,0.242993]
[1727993669193,0.24634789,60942.0,60941.0,0.55157437]
[1727993669426,0.24634789,60949.0,60945.0,0.32816]
[1727993669655,0.24634789,60949.0,60948.0,0.35047745]
[1727993669919,0.26356,60953.0,60948.0,0.18640345]
[1727993670156,0.26356,60953.0,60949.0,0.16407]
[1727993670861,0.328111,60955.0,60949.0,0.16407]
[1727993670862,0.1897682,60958.0,60954.0,0.164057]
[1727993671118,0.0995,60959.0,60956.0,0.35045545]
[1727993671358,0.263545,60959.0,60956.0,0.18640345]
[1727993671589,0.0995,60959.0,60956.0,0.35045345]
[1727993671819,0.16405,60957.0,60956.0,0.18640345]
[1727993672264,0.164047,60958.0,60956.0,0.18640345]
[1727993672511,0.1015,60959.0,60956.0,0.18640345]
[1727993672975,0.164047,60958.0,60956.0,0.18640345]
[1727993673218,0.164047,60958.0,60956.0,0.18740345]
[1727993673450,0.001,60957.0,60956.0,0.18640345]
[1727993674165,0.16505,60957.0,60956.0,0.18640345]
[1727993674411,0.001,60957.0,60948.0,0.18640345]
[1727993674640,0.164063,60953.0,60947.0,0.41042289]
[1727993674862,0.164063,60952.0,60948.0,0.18640345]
[1727993675094,0.164063,60952.0,60948.0,0.35047645]
[1727993676484,0.164063,60952.0,60948.0,0.35747645]
[1727993676935,0.164063,60952.0,60948.0,0.36247645]
[1727993677383,0.328104,60957.0,60948.0,0.19140345]
[1727993677620,0.164061,60953.0,60949.0,0.164071]
[1727993679272,0.166061,60953.0,60949.0,0.164071]